bitfinex/quotes_SOLUSD_20220307
["timestamp","ask_amount","ask_price","bid_price","bid_amount"]
[1646627436769,5.46962634,82.838,82.752,46.5775]
[1646627437067,121.9,82.835,82.752,46.5775]
[1646627437268,121.9,82.833,82.752,46.5775]
[1646627437469,29.8467,82.832,82.752,46.5775]
[1646627437669,121.4,82.831,82.752,46.5775]
[1646627437868,5.84617579,82.829,82.752,46.5775]
[1646627438168,121.4,82.827,82.752,46.5775]
[1646627438369,0.53033573,82.826,82.752,46.5775]
[1646627438769,121.4,82.827,82.752,46.5775]
[1646627439171,121.4,82.826,82.752,46.5775]
[1646627440286,5.78229455,82.83,82.752,46.5775]
[1646627441476,5.78229455,82.83,82.752,68.46276381]
[1646627441777,6.039,82.829,82.752,68.46276381]
[1646627442776,6.039,82.829,82.76,18.124]
[1646627443076,121.9,82.835,82.76,32.804]
[1646627443276,62.54641157,82.836,82.761,19.28316126]
[1646627443477,62.54641157,82.836,82.761,16.447026]
[1646627443679,62.54641157,82.836,82.762,16.447026]
[1646627443981,121.9,82.835,82.763,22.5252]
[1646627444177,4.18828245,82.834,82.763,22.5252]
[1646627444378,4.18828245,82.834,82.764,16.447026]
[1646627444978,121.9,82.835,82.764,16.447026]
[1646627445983,6.038,82.834,82.764,16.447026]
[1646627447579,6.038,82.834,82.763,22.5252]
[1646627447785,0.54126836,82.833,82.763,22.5252]
[1646627447979,6.038,82.832,82.763,22.5252]
[1646627448179,6.038,82.834,82.763,22.5252]
[1646627452786,1.63799961,82.823,82.763,22.5252]
[1646627452987,56.68166892,82.822,82.763,22.5252]
[1646627453896,50.64266892,82.822,82.763,22.5252]
[1646627454490,121.9,82.821,82.763,22.5252]
[1646627454990,6.039,82.82,82.763,22.5252]
[1646627455794,1.63799961,82.817,82.763,22.5252]
[1646627456093,121.9,82.815,82.763,22.5252]
[1646627456394,6.039,82.814,82.763,22.5252]
[1646627457394,6.039,82.815,82.763,22.5252]
[1646627459295,1.63799961,82.817,82.763,22.5252]
[1646627460313,1.63799961,82.814,82.763,22.5252]
[1646627462215,1.63799961,82.815,82.763,22.5252]
[1646627463112,1.63799961,82.814,82.763,22.5252]
[1646627464016,1.63799961,82.812,82.763,22.5252]
[1646627464615,1.63799961,82.813,82.763,22.5252]
[1646627464816,6.039,82.812,82.763,22.5252]
[1646627465717,6.039,82.814,82.763,22.5252]
[1646627468117,6.039,82.815,82.763,22.5252]
[1646627468318,7.67699961,82.815,82.763,22.5252]
[1646627468519,121.9,82.814,82.763,22.5252]
[1646627468718,6.039,82.813,82.763,22.5252]
[1646627469421,127.939,82.813,82.763,22.5252]
[1646627469624,127.939,82.813,82.752,23.4216]
[1646627469921,1.63799961,82.805,82.731,29.0796]
[1646627470120,1.63799961,82.799,82.731,23.0406]
[1646627470319,0.66164291,82.798,82.731,23.0406]
[1646627470520,0.66164291,82.794,82.731,23.0406]
[1646627470720,0.66164291,82.792,82.731,23.0406]
[1646627471023,121.9,82.789,82.731,23.0406]
[1646627471219,6.041,82.788,82.731,23.0406]
[1646627471421,6.041,82.789,82.731,23.0406]
[1646627472721,127.941,82.789,82.731,23.0406]
[1646627473825,121.9,82.789,82.731,23.0406]
[1646627474023,121.9,82.789,82.731,22.5406]
[1646627474627,61.60098458,82.79,82.731,22.5406]
[1646627477330,6.041,82.789,82.731,22.5406]
[1646627478430,127.941,82.789,82.731,22.5406]
[1646627478636,5.07135921,82.788,82.731,22.5406]
[1646627478831,0.53993757,82.786,82.731,22.5406]
[1646627479032,0.53993757,82.786,82.723,22.5755]
[1646627479033,0.58459857,82.784,82.723,22.5755]
[1646627479230,0.58459857,82.782,82.723,22.5755]
[1646627479630,0.58459857,82.78,82.723,22.5755]
[1646627479832,0.58459857,82.78,82.72,2.83613526]
[1646627480033,121.9,82.776,82.72,2.83613526]
[1646627480232,0.67960191,82.774,82.72,2.83613526]
[1646627480431,0.67960191,82.772,82.72,2.83613526]
[1646627480631,0.67960191,82.77,82.72,2.83613526]
[1646627480832,6.042,82.769,82.72,2.83613526]
[1646627481235,4.38803229,82.768,82.708,23.93605528]
[1646627481433,6.043,82.767,82.707,24.6212]
[1646627481631,6.043,82.773,82.709,2.83613526]
[1646627482032,6.043,82.773,82.707,24.6212]
[1646627482437,6.043,82.773,82.708,2.83613526]
[1646627482833,5.7563733,82.775,82.709,17.48503872]
[1646627483034,6.042,82.774,82.709,17.48503872]
[1646627483235,6.042,82.774,82.71,20.97163526]
[1646627483735,6.042,82.775,82.711,20.32117398]
[1646627484136,6.042,82.775,82.712,20.32117398]
[1646627484536,6.042,82.775,82.713,2.83613526]
[1646627490353,0.77905686,82.774,82.713,2.83613526]
[1646627490553,6.042,82.773,82.713,2.83613526]
[1646627490754,6.042,82.775,82.713,2.83613526]
[1646627490955,5.73960698,82.774,82.713,2.83613526]
[1646627491155,6.042,82.773,82.713,2.83613526]
[1646627493455,4.45358411,82.775,82.713,2.83613526]
[1646627493855,4.45358411,82.775,82.713,20.32117398]
[1646627494071,4.45358411,82.775,82.713,2.83613526]
[1646627494268,4.45358411,82.775,82.714,2.83613526]
[1646627497673,4.45358411,82.775,82.714,21.98834475]
[1646627498876,4.45358411,82.775,82.714,2.83613526]
[1646627499076,4.45358411,82.775,82.707,24.6212]
[1646627499276,6.042,82.774,82.707,24.6212]
[1646627499478,6.042,82.774,82.708,11.36624814]
[1646627499680,121.9,82.772,82.692,11.36624814]
[1646627499882,0.98270243,82.769,82.692,11.36624814]
[1646627500082,1.63799961,82.758,82.683,17.62096471]
[1646627500276,1.63799961,82.753,82.663,114.5]
[1646627500479,1.63799961,82.744,82.663,114.5]
[1646627500676,125.92863946,82.742,82.663,114.5]
[1646627500876,0.98270243,82.738,82.653,17.8546]
[1646627501076,24.45585957,82.738,82.637,19.89746641]
[1646627501276,127.946,82.737,82.637,19.89746641]
[1646627501480,0.98270243,82.736,82.637,38.17946641]
[1646627501877,0.98270243,82.734,82.637,38.17946641]
[1646627502078,0.98270243,82.731,82.637,38.17946641]
[1646627502279,6.047,82.73,82.637,38.17946641]
[1646627502478,0.60994493,82.727,82.637,38.17946641]
[1646627502778,0.65467244,82.725,82.63,18.1522]
[1646627503080,5.32312505,82.723,82.63,36.3853]
[1646627503278,0.65467244,82.721,82.63,36.3853]
[1646627503678,121.9,82.719,82.63,36.3853]
[1646627504078,0.76252656,82.718,82.63,36.3853]
[1646627504278,0.76252656,82.715,82.63,36.3853]
[1646627504478,6.047,82.714,82.63,36.3853]
[1646627504679,0.76252656,82.712,82.63,36.3853]
[1646627504879,6.048,82.711,82.63,36.3853]
[1646627505480,6.048,82.711,82.631,43.76566641]
[1646627505683,6.048,82.711,82.64,18.1505]
[1646627505880,6.048,82.711,82.641,88.34590384]
[1646627506884,6.047,82.713,82.641,88.34590384]
[1646627508785,6.047,82.713,82.65,18.1484]
[1646627509585,28.6224,82.719,82.65,18.1484]
[1646627509987,121.9,82.718,82.65,18.1484]
[1646627510188,6.047,82.717,82.651,24.2156]
[1646627510588,6.047,82.717,82.66,18.147]
[1646627510891,6.047,82.717,82.66,114.5]
[1646627515692,0.49350996,82.716,82.66,114.5]
[1646627515892,5.10741193,82.714,82.66,114.5]
[1646627516691,6.046,82.713,82.66,114.5]
[1646627517691,22.5754,82.719,82.66,114.5]
[1646627518893,6.046,82.736,82.66,114.5]
[1646627519094,6.046,82.738,82.66,132.6452]
[1646627519295,30.9642,82.738,82.66,132.6452]
[1646627519496,121.9,82.737,82.661,24.4785]
[1646627519695,6.046,82.736,82.661,24.4785]
[1646627519895,6.046,82.737,82.661,27.31463526]
[1646627520096,6.046,82.74,82.662,121.9]
[1646627520298,47.97998416,82.759,82.67,18.1426]
[1646627520498,121.9,82.766,82.68,14.68]
[1646627520697,121.9,82.766,82.681,24.4785]
[1646627520897,6.044,82.765,82.681,24.4785]
[1646627521297,121.9,82.764,82.681,24.4785]
[1646627521499,121.9,82.762,82.682,63.30668957]
[1646627521698,4.72854687,82.761,82.682,63.30668957]
[1646627521898,6.043,82.76,82.682,63.30668957]
[1646627522198,127.943,82.76,82.682,63.30668957]
[1646627522399,2.83613526,82.759,82.682,63.30668957]
[1646627522600,6.043,82.758,82.682,63.30668957]
[1646627523000,2.83613526,82.757,82.681,24.4785]
[1646627523203,127.943,82.756,82.681,24.4785]
[1646627523803,2.83613526,82.755,82.681,24.4785]
[1646627524008,6.043,82.754,82.682,47.76952381]
[1646627524404,6.043,82.755,82.682,47.76952381]
[1646627525105,121.9,82.756,82.682,47.76952381]
[1646627525505,121.9,82.756,82.683,2.83613526]
[1646627527208,6.043,82.761,82.683,2.83613526]
[1646627527409,6.043,82.773,82.69,18.1385]
[1646627527608,127.943,82.786,82.7,14.68]
[1646627528020,127.943,82.786,82.701,55.89644066]
[1646627528319,127.943,82.786,82.701,58.73257592]
[1646627528521,6.043,82.786,82.702,27.23563526]
[1646627528921,6.043,82.786,82.703,2.83613526]
[1646627529123,6.043,82.786,82.71,18.1319]
[1646627529323,53.0325049,82.786,82.71,32.8119]
[1646627529523,53.0325049,82.786,82.711,2.83613526]
[1646627529822,121.9,82.785,82.712,24.6057]
[1646627530024,53.0325049,82.786,82.712,24.6057]
[1646627530222,53.0325049,82.786,82.713,2.83613526]
[1646627530423,53.0325049,82.786,82.714,49.92909559]
[1646627530623,53.0325049,82.786,82.72,18.1321]
[1646627530824,53.0325049,82.786,82.72,32.8121]
[1646627531023,53.0325049,82.786,82.721,2.83613526]
[1646627531623,53.0325049,82.786,82.722,13.53663278]
[1646627532024,53.0325049,82.786,82.723,2.83613526]
[1646627532223,53.0325049,82.786,82.741,59.95532749]
[1646627532623,53.0325049,82.786,82.742,2.83613526]
[1646627534226,6.041,82.82,82.742,2.83613526]
[1646627534426,6.041,82.82,82.75,18.1252]
[1646627534825,6.041,82.82,82.75,20.96133526]
[1646627535025,23.0571,82.821,82.75,20.96133526]
[1646627535224,59.53304256,82.82,82.75,20.96133526]
[1646627535425,121.9,82.819,82.75,20.96133526]
[1646627535928,59.53304256,82.82,82.75,20.96133526]
[1646627536329,121.9,82.819,82.75,20.96133526]
[1646627536527,0.54054706,82.818,82.75,2.83613526]
[1646627536727,121.9,82.819,82.75,2.83613526]
[1646627537330,0.49796063,82.818,82.75,2.83613526]
[1646627537729,121.9,82.819,82.75,2.83613526]
[1646627538130,6.039,82.818,82.75,2.83613526]
[1646627538330,6.039,82.819,82.75,2.83613526]
[1646627538530,6.039,82.819,82.75,17.51613526]
[1646627538730,59.53304256,82.82,82.75,17.51613526]
[1646627539131,59.53304256,82.82,82.75,35.64143526]
[1646627545435,6.039,82.833,82.75,35.64143526]
[1646627545635,6.039,82.833,82.751,121.9]
[1646627545837,6.039,82.848,82.77,18.1166]
[1646627546138,6.037,82.855,82.78,14.68]
[1646627546335,6.037,82.858,82.781,24.7051]
[1646627546538,50.52194758,82.848,82.782,61.90864333]
[1646627546938,50.52194758,82.848,82.782,64.74477859]
[1646627547138,50.52194758,82.848,82.79,18.1167]
[1646627548543,50.52194758,82.848,82.791,2.83613526]
[1646627548744,50.52194758,82.848,82.8,18.1133]
[1646627550743,122.71123569,82.847,82.792,6.037]
[1646627550948,4.84758558,82.846,82.782,2.83613526]
[1646627551142,122.78232956,82.845,82.77,14.68]
[1646627551343,122.78232956,82.845,82.751,24.3316]
[1646627551344,122.78232956,82.845,82.764,64.49293293]
[1646627551543,0.88232956,82.842,82.765,30.3696]
[1646627551742,0.88232956,82.84,82.765,30.3696]
[1646627551947,6.038,82.839,82.765,30.3696]
[1646627552142,6.038,82.842,82.766,2.83613526]
[1646627552342,24.2215,82.844,82.766,2.83613526]
[1646627552343,6.038,82.843,82.77,14.68]
[1646627552744,24.2215,82.844,82.771,8.87413526]
[1646627553145,121.9,82.843,82.772,2.83613526]
[1646627553346,121.9,82.843,82.773,6.038]
[1646627553749,121.9,82.843,82.773,8.87413526]
[1646627554148,121.9,82.843,82.78,18.1187]
[1646627555348,121.9,82.843,82.778,23.1231]
[1646627555549,0.5085795,82.842,82.778,23.1231]
[1646627555749,121.9,82.843,82.778,23.1231]
[1646627556148,0.56265573,82.841,82.778,23.1231]
[1646627556350,6.037,82.842,82.778,23.1231]
[1646627556553,121.9,82.841,82.778,23.1231]
[1646627556748,0.54940852,82.839,82.778,23.1231]
[1646627556949,0.55549554,82.837,82.778,23.1231]
[1646627557151,32.73983216,82.835,82.778,23.1231]
[1646627557350,32.18433662,82.835,82.778,23.1231]
[1646627557550,121.9,82.834,82.778,23.1231]
[1646627558651,32.18433662,82.835,82.778,23.1231]
[1646627558851,32.18433662,82.835,82.779,2.83613526]
[1646627559950,32.18433662,82.835,82.78,32.7985]
[1646627560351,32.18433662,82.835,82.781,2.83613526]
[1646627562554,32.18433662,82.835,82.79,18.1166]
[1646627562956,32.18433662,82.835,82.791,2.83613526]
[1646627581192,1.63799961,82.843,82.8,32.7932]
[1646627581395,1.63799961,82.853,82.8,32.7932]
[1646627581790,24.0997,82.856,82.787,2.83613526]
[1646627581791,1.63799961,82.852,82.787,2.83613526]
[1646627581990,123.53799961,82.85,82.787,2.83613526]
[1646627582190,1.63799961,82.848,82.787,2.83613526]
[1646627582390,0.61119294,82.847,82.787,2.83613526]
[1646627582591,0.61119294,82.848,82.787,2.83613526]
[1646627583192,1.63799961,82.846,82.787,2.83613526]
[1646627583392,6.037,82.845,82.787,2.83613526]
[1646627583794,23.3322,82.844,82.787,2.83613526]
[1646627584492,24.97019961,82.844,82.787,2.83613526]
[1646627584694,1.63799961,82.843,82.787,2.83613526]
[1646627584893,24.97019961,82.844,82.787,2.83613526]
[1646627585294,1.63799961,82.843,82.787,2.83613526]
[1646627585595,0.74678297,82.841,82.787,2.83613526]
[1646627585794,0.74678297,82.838,82.783,24.9411]
[1646627585994,2.38478258,82.838,82.783,24.9411]
[1646627586193,1.63799961,82.837,82.783,24.9411]
[1646627586394,154.0152924,82.836,82.783,24.9411]
[1646627586595,153.26850943,82.836,82.783,24.9411]
[1646627586995,31.36850943,82.836,82.783,24.9411]
[1646627587597,1.63799961,82.835,82.783,24.9411]
[1646627587997,33.00650904,82.836,82.783,24.9411]
[1646627588199,33.00650904,82.836,82.79,18.1163]
[1646627588397,31.36850943,82.836,82.79,18.1163]
[1646627588799,33.00650904,82.836,82.79,18.1163]
[1646627589399,31.36850943,82.836,82.79,18.1163]
[1646627590103,33.00650904,82.836,82.784,2.83613526]
[1646627590303,33.00650904,82.836,82.783,24.9411]
[1646627590605,0.53760664,82.835,82.783,24.9411]
[1646627590805,33.00650904,82.836,82.783,24.9411]
[1646627591204,33.00650904,82.836,82.784,2.83613526]
[1646627591705,31.36850943,82.836,82.785,50.20192347]
[1646627592109,31.36850943,82.836,82.79,18.1162]
[1646627595110,31.36850943,82.836,82.784,18.093]
[1646627598027,0.6488062,82.835,82.784,18.093]
[1646627598227,31.36850943,82.836,82.784,18.093]
[1646627598431,33.00650904,82.836,82.784,18.093]
[1646627599334,1.63799961,82.835,82.784,18.093]
[1646627600135,33.00650904,82.836,82.784,18.093]
[1646627602137,1.63799961,82.835,82.784,18.093]
[1646627603940,1.63799961,82.835,82.767,2.83613526]
[1646627603941,1.63799961,82.831,82.767,2.83613526]
[1646627604141,1.63799961,82.823,82.758,2.83613526]
[1646627604339,1.63799961,82.819,82.748,2.83613526]
[1646627604540,2.34587956,82.818,82.748,2.83613526]
[1646627604739,1.63799961,82.816,82.748,2.83613526]
[1646627604942,0.70787995,82.815,82.75,18.1252]
[1646627605142,1.63799961,82.818,82.75,18.1252]
[1646627605340,1.63799961,82.818,82.761,46.77109597]
[1646627605540,51.33777477,82.822,82.764,2.83613526]
[1646627605740,51.33777477,82.822,82.764,27.43683578]
[1646627605944,51.33777477,82.822,82.765,24.60070052]
[1646627606141,51.33777477,82.822,82.771,59.41732704]
[1646627606640,51.33777477,82.822,82.772,24.60070052]
[1646627606842,51.33777477,82.822,82.772,27.43683578]
[1646627607245,51.33777477,82.822,82.773,2.83613526]
[1646627607443,51.33777477,82.822,82.773,27.43683578]
[1646627607643,51.33777477,82.822,82.774,24.60070052]
[1646627607846,51.33777477,82.822,82.774,27.43683578]
[1646627608246,51.33777477,82.822,82.78,18.1186]
[1646627608546,51.33777477,82.822,82.781,24.60070052]
[1646627608746,51.33777477,82.822,82.781,27.43683578]
[1646627608945,51.33777477,82.822,82.782,2.83613526]
[1646627611545,51.33777477,82.822,82.782,27.43683578]
[1646627611947,1.63799961,82.843,82.79,18.1163]
[1646627612147,1.63799961,82.855,82.8,14.68]
[1646627612347,160.4,82.86,82.8,14.68]
[1646627612547,160.4,82.86,82.801,15.10034005]
[1646627612747,160.4,82.86,82.801,43.4038425]
[1646627612946,59.60495789,82.859,82.803,51.97640653]
[1646627613346,59.60495789,82.859,82.81,18.108]
[1646627613746,59.60495789,82.859,82.811,2.83613526]
[1646627613947,59.60495789,82.859,82.804,15.10034005]
[1646627614147,146.1228,82.858,82.804,15.10034005]
[1646627614446,1.63799961,82.857,82.802,24.3838]
[1646627614645,146.1228,82.858,82.802,24.3838]
[1646627614646,1.63799961,82.856,82.802,24.3838]
[1646627614846,1.63799961,82.855,82.802,24.3838]
[1646627615247,1.63799961,82.856,82.802,24.3838]
[1646627615850,1.63799961,82.857,82.802,24.3838]
[1646627616853,25.86079961,82.858,82.802,24.3838]
[1646627617554,6.035,82.857,82.802,24.3838]
[1646627618354,127.935,82.857,82.802,24.3838]
[1646627618555,0.51213423,82.856,82.802,24.3838]
[1646627618753,6.035,82.855,82.802,49.85116719]
[1646627619154,6.035,82.856,82.802,49.85116719]
[1646627619554,6.035,82.857,82.802,49.85116719]
[1646627619956,24.2228,82.858,82.802,49.85116719]
[1646627620157,59.60495789,82.859,82.803,2.83613526]
[1646627620356,59.60495789,82.859,82.803,17.93647531]
[1646627620556,59.60495789,82.859,82.804,25.46736719]
[1646627620758,59.60495789,82.859,82.805,47.62983225]
[1646627620958,59.60495789,82.859,82.81,14.68]
[1646627621160,59.60495789,82.859,82.81,32.7917]
[1646627621359,1.63799961,82.87,82.81,32.7917]
[1646627621558,160.4,82.869,82.811,40.56770724]
[1646627621758,160.4,82.872,82.812,23.2514]
[1646627621958,166.435,82.872,82.812,66.6552425]
[1646627622358,166.435,82.872,82.813,2.83613526]
[1646627622557,58.31119776,82.871,82.813,28.30350245]
[1646627623058,58.31119776,82.871,82.814,2.83613526]
[1646627623258,58.31119776,82.871,82.82,18.1088]
[1646627624161,58.31119776,82.871,82.821,17.93647531]
[1646627624458,58.31119776,82.871,82.83,18.1065]
[1646627624960,58.31119776,82.871,82.831,2.83613526]
[1646627625959,160.4,82.872,82.832,58.82082532]
[1646627626160,160.4,82.883,82.841,121.9]
[1646627626364,141.8,82.883,82.841,121.9]
[1646627626562,141.8,82.907,82.841,121.9]
[1646627626762,141.8,82.907,82.843,121.9]
[1646627626962,55.7056959,82.906,82.842,46.35050917]
[1646627627165,55.7056959,82.906,82.85,18.098]
[1646627627462,52.7056959,82.906,82.86,14.68]
[1646627627663,141.8,82.902,82.86,14.68]
[1646627627862,141.8,82.905,82.861,19.32314198]
[1646627628264,141.8,82.905,82.862,19.32314198]
[1646627628662,141.8,82.905,82.86,14.68]
[1646627628663,141.8,82.905,82.863,19.32314198]
[1646627629083,141.8,82.905,82.87,18.0986]
[1646627629582,141.8,82.905,82.871,2.83613526]
[1646627631684,141.8,82.905,82.871,20.60523526]
[1646627632082,141.8,82.905,82.872,2.83613526]
[1646627632882,140.3,82.905,82.872,2.83613526]
[1646627633582,140.3,82.905,82.872,2.86613526]
[1646627634584,140.3,82.905,82.873,2.83613526]
[1646627636986,0.51187875,82.904,82.873,2.83613526]
[1646627637186,140.3,82.905,82.873,2.83613526]
[1646627638588,140.3,82.905,82.873,2.86613526]
[1646627642791,140.3,82.905,82.873,0.14851196]
[1646627642991,0.56262641,82.904,82.873,0.14851196]
[1646627643290,140.3,82.905,82.87,25.12777881]
[1646627643492,121.9,82.933,82.87,18.84871828]
[1646627643691,121.9,82.931,82.87,18.84871828]
[1646627643891,121.9,82.929,82.87,18.84871828]
[1646627644090,128.46908342,82.928,82.87,18.361]
[1646627644291,127.931,82.928,82.87,18.361]
[1646627644693,0.49544853,82.927,82.87,18.361]
[1646627644894,6.031,82.926,82.87,18.361]
[1646627645192,6.031,82.929,82.87,18.361]
[1646627645594,6.031,82.929,82.871,24.7486]
[1646627646795,36.05521066,82.93,82.871,24.7486]
[1646627648297,36.05521066,82.93,82.872,50.10561355]
[1646627648498,36.05521066,82.93,82.88,18.0963]
[1646627648699,36.05521066,82.93,82.88,32.7763]
[1646627649099,36.05521066,82.93,82.881,42.1924185]
[1646627649496,36.05521066,82.93,82.882,42.1924185]
[1646627649701,140.3,82.934,82.883,121.9]
[1646627649900,6.031,82.946,82.883,121.9]
[1646627649901,140.3,82.945,82.883,164.0924185]
[1646627650099,140.3,82.945,82.883,42.1924185]
[1646627650297,140.3,82.945,82.884,2.83613526]
[1646627650498,140.3,82.946,82.884,2.83613526]
[1646627650700,44.67893063,82.945,82.884,26.01853526]
[1646627650898,44.67893063,82.945,82.89,18.0924]
[1646627651099,140.3,82.939,82.89,14.68]
[1646627651298,140.3,82.943,82.89,14.68]
[1646627652901,6.03,82.942,82.89,14.68]
[1646627653503,140.3,82.943,82.89,14.68]
[1646627653905,1.63799961,82.938,82.89,14.68]
[1646627654104,1.63799961,82.939,82.89,14.68]
[1646627654305,1.63799961,82.938,82.89,14.68]
[1646627654706,1.63799961,82.936,82.89,14.68]
[1646627654910,1.63799961,82.936,82.884,23.1824]
[1646627655106,7.66799961,82.935,82.884,23.1824]
[1646627655506,7.66799961,82.935,82.88,14.68]
[1646627655707,24.5111,82.934,82.88,14.68]
[1646627655912,24.5111,82.934,82.88,32.7742]
[1646627656109,1.63799961,82.933,82.88,14.68]
[1646627656308,140.3,82.929,82.88,14.68]
[1646627656508,146.331,82.931,82.88,14.68]
[1646627656909,0.55631785,82.93,82.88,14.68]
[1646627657110,140.3,82.929,82.88,14.68]
[1646627657308,140.3,82.931,82.88,14.68]
[1646627658309,141.93799961,82.931,82.88,14.68]
[1646627658909,140.3,82.931,82.88,14.68]
[1646627661915,140.3,82.933,82.88,14.68]
[1646627664515,0.69665094,82.932,82.88,14.68]
[1646627664717,0.69665094,82.932,82.872,24.9652]
[1646627664918,0.79039757,82.93,82.872,24.9652]
[1646627665123,149.16613526,82.933,82.872,24.9652]
[1646627665124,0.79039757,82.928,82.872,24.9652]
[1646627665517,1.63799961,82.927,82.872,24.9652]
[1646627666819,1.63799961,82.927,82.873,2.83613526]
[1646627667020,1.63799961,82.926,82.873,2.83613526]
[1646627667221,1.63799961,82.927,82.87,18.361]
[1646627667419,0.98270243,82.925,82.87,18.361]
[1646627667619,0.98270243,82.923,82.87,18.361]
[1646627667822,0.98270243,82.921,82.87,18.361]
[1646627668221,59.51921904,82.92,82.87,18.361]
[1646627668420,0.98270243,82.919,82.87,18.361]
[1646627668620,6.031,82.918,82.87,18.361]
[1646627668821,6.031,82.919,82.87,18.361]
[1646627670741,53.48821904,82.92,82.87,18.361]
[1646627673644,6.031,82.919,82.87,18.361]
[1646627673943,6.031,82.919,82.87,36.4596]
[1646627675844,6.031,82.919,82.87,18.361]
[1646627676644,53.48821904,82.92,82.87,18.361]
[1646627677044,55.12621865,82.92,82.87,18.361]
[1646627677245,53.48821904,82.92,82.87,18.361]
[1646627677744,55.12621865,82.92,82.87,18.361]
[1646627679249,22.6117,82.92,82.871,58.53134506]
[1646627679447,140.3,82.922,82.871,58.53134506]
[1646627679649,140.3,82.937,82.872,24.85895442]
[1646627679849,140.3,82.937,82.873,31.0145]
[1646627680050,146.33,82.944,82.873,55.87345442]
[1646627680249,27.96054444,82.943,82.874,2.83613526]
[1646627680454,140.3,82.929,82.875,6.03]
[1646627680651,140.3,82.929,82.89,14.68]
[1646627680854,140.3,82.947,82.891,127.93]
[1646627681051,103.7102,82.947,82.891,157.68988565]
[1646627681252,103.7102,82.947,82.891,174.33243581]
[1646627681455,76.7,82.947,82.893,121.9]
[1646627681653,31.83525508,82.955,82.894,6.029]
[1646627681852,31.83525508,82.955,82.895,121.9]
[1646627682054,76.7,82.927,82.9,18.0876]
[1646627682253,76.7,82.936,82.91,14.68]
[1646627682454,76.7,82.953,82.91,14.68]
[1646627682652,76.7,82.972,82.911,6.029]
[1646627682852,6.027,82.971,82.912,23.8554]
[1646627683055,23.1575,82.971,82.913,6.027]
[1646627683254,34.98197209,82.97,82.92,18.0854]
[1646627683454,76.7,82.953,82.92,18.0854]
[1646627683654,76.7,82.969,82.92,18.0854]
[1646627684254,6.027,82.968,82.92,18.0854]
[1646627684456,8.28071175,82.952,82.92,32.7654]
[1646627685759,8.28071175,82.952,82.92,14.68]
[1646627686756,0.54436039,82.951,82.92,14.68]
[1646627686956,8.28071175,82.952,82.89,6.027]
[1646627687156,0.59327937,82.95,82.877,6.029]
[1646627687357,6.42327937,82.95,82.894,6.029]
[1646627687557,6.029,82.949,82.89,14.68]
[1646627687758,0.59327937,82.948,82.89,14.68]
[1646627687958,6.029,82.947,82.89,14.68]
[1646627688359,23.3779,82.951,82.89,14.68]
[1646627688360,6.03,82.95,82.89,14.68]
[1646627688557,82.73,82.95,82.89,14.68]
[1646627688958,121.9,82.949,82.89,14.68]
[1646627689161,0.49553662,82.947,82.89,14.68]
[1646627689461,6.03,82.946,82.89,14.68]
[1646627689658,6.03,82.948,82.89,14.68]
[1646627690461,6.03,82.948,82.89,40.53507681]
[1646627692764,6.03,82.948,82.891,6.029]
[1646627694167,6.03,82.948,82.891,68.07517042]
[1646627694365,6.03,82.948,82.892,25.85507681]
[1646627695168,82.73,82.948,82.892,25.85507681]
[1646627696168,82.73,82.948,82.893,30.14747024]
[1646627696367,76.7,82.948,82.894,6.029]
[1646627696567,76.7,82.95,82.894,34.72021207]
[1646627696767,76.7,82.95,82.895,25.85507681]
[1646627696968,76.7,82.95,82.896,6.029]
[1646627697568,76.7,82.95,82.897,2.83613526]
[1646627697769,76.7,82.95,82.898,6.029]
[1646627698170,76.7,82.95,82.9,14.68]
[1646627698372,76.7,82.95,82.901,6.029]